bitfinex-derivatives/quotes_SOLF0:USTF0_20251020
["timestamp","ask_amount","ask_price","bid_price","bid_amount"]
[1760991513088,1.94,189.44,189.39,2.72]
[1760991513982,6.69,189.44,189.39,2.72]
[1760991514189,3.97076408,189.43,189.36,7.4718]
[1760991514591,3.97076408,189.41,189.37,2.72]
[1760991514998,48.25076408,189.41,189.37,2.72]
[1760991515692,1.94,189.4,189.37,2.72]
[1760991517998,46.2,189.4,189.37,2.72]
[1760991518293,46.2,189.4,189.36,7.4718]
[1760991518693,44.26,189.4,189.36,2.72]
[1760991518893,1.94,189.38,189.34,4.7523]
[1760991519098,1.94,189.38,189.35,2.72]
[1760991519401,2.03076408,189.39,189.35,2.72]
[1760991519606,3.97076408,189.39,189.35,2.72]
[1760991519903,1.94,189.38,189.34,4.7523]
[1760991520197,1.94,189.37,189.34,4.7523]
[1760991520402,1.94,189.37,189.32,7.4728]
[1760991520403,1.94,189.36,189.32,7.4728]
[1760991520704,1.94,189.36,189.32,2.72]
[1760991521298,1.94,189.34,189.31,2.72]
[1760991521501,1.94,189.34,189.25,4.87283268]
[1760991521502,1.94,189.34,189.26,2.72]
[1760991521804,2.03076408,189.33,189.26,2.72]
[1760991522109,43.52,189.32,189.26,2.72]
[1760991522304,43.52,189.32,189.28,4.7538]
[1760991522499,45.46,189.32,189.28,7.4738]
[1760991523009,44.24,189.31,189.28,7.4738]
[1760991523798,44.24,189.31,189.29,2.72]
[1760991525307,1.94,189.3,189.26,7.4743]
[1760991526108,1.94,189.3,189.27,2.72]
[1760991526811,1.94,189.3,189.26,7.4743]
[1760991527214,1.94,189.3,189.27,2.72]
[1760991528010,46.27076408,189.31,189.27,2.72]
[1760991528307,44.22,189.3,189.28,2.72]
[1760991528495,44.22,189.3,189.27,7.474]
[1760991530010,44.22,189.3,189.28,2.72]
[1760991530212,2.03076408,189.31,189.28,4.7537]
[1760991530513,2.03076408,189.33,189.29,2.72]
[1760991530819,22.12,189.3,189.29,2.72]
[1760991532007,41.6,189.31,189.29,2.72]
[1760991532528,1.94,189.3,189.26,7.4745]
[1760991532810,1.94,189.26,189.21,2.72]
[1760991533008,1.94,189.26,189.23,4.7553]
[1760991533213,3.97076408,189.29,189.22,2.72]
[1760991533610,17.64,189.28,189.22,2.72]
[1760991534618,3.97076408,189.27,189.24,4.7551]
[1760991535407,17.64,189.28,189.25,2.72]
[1760991535804,17.64,189.28,189.24,4.7551]
[1760991536011,1.94,189.26,189.22,7.4755]
[1760991536212,1.94,189.26,189.23,2.72]
[1760991536916,2.03076408,189.27,189.23,2.72]
[1760991537217,2.03076408,189.27,189.24,2.72]
[1760991537409,3.97076408,189.27,189.24,2.83]
[1760991537609,1.94,189.27,189.24,2.83]
[1760991538012,17.64,189.28,189.24,7.585]
[1760991538217,19.58,189.28,189.24,7.585]
[1760991540316,3.97076408,189.27,189.24,4.755]
[1760991540813,2.03076408,189.27,189.24,7.585]
[1760991541115,2.03076408,189.27,189.21,2.83]
[1760991541310,3.97076408,189.29,189.21,2.83]
[1760991542113,1.94,189.28,189.24,4.7551]
[1760991542417,1.94,189.28,189.24,7.5851]
[1760991543120,3.97076408,189.27,189.24,4.7551]
[1760991543820,3.97076408,189.27,189.24,7.5851]
[1760991544717,1.94,189.26,189.24,4.7551]
[1760991545425,1.94,189.26,189.21,2.83]
[1760991545626,2.03076408,189.25,189.21,2.83]
[1760991545928,3.97076408,189.25,189.21,2.83]
[1760991546225,2.03076408,189.25,189.21,2.83]
[1760991546525,1.94,189.24,189.21,2.83]
[1760991547416,2.03076408,189.23,189.17,2.83]
[1760991547627,1.94,189.22,189.17,2.83]
[1760991548225,1.94,189.22,189.18,4.7565]
[1760991548426,1.94,189.22,189.18,7.5865]
[1760991549320,1.94,189.22,189.19,2.83]
[1760991549620,1.94,189.26,189.2,7.586]
[1760991549823,1.94,189.25,189.2,7.586]
[1760991550330,1.94,189.23,189.18,4.7566]
[1760991550519,1.94,189.23,189.18,7.5866]
[1760991551419,1.94,189.23,189.19,2.83]
[1760991551821,1.94,189.23,189.2,2.83]
[1760991553521,1.94,189.23,189.19,4.7563]
[1760991553723,1.94,189.21,189.19,4.7563]
[1760991554028,1.94,189.21,189.17,7.5868]
[1760991555121,1.94,189.21,189.18,2.74]
[1760991555427,27.5753,189.24,189.18,7.4965]
[1760991556131,1.94,189.23,189.18,7.4965]
[1760991556522,1.94,189.23,189.18,4.7565]
[1760991557130,1.94,189.23,189.18,7.4965]
[1760991558032,1.94,189.23,189.19,2.74]
[1760991559125,1.94,189.23,189.18,4.7565]
[1760991559327,1.94,189.23,189.18,7.4965]
[1760991559629,1.94,189.23,189.19,2.74]
[1760991560630,1.94,189.23,189.18,4.7565]
[1760991560836,1.94,189.22,189.16,7.497]
[1760991561935,6.6959,189.22,189.16,7.497]
[1760991562236,1.94,189.21,189.16,7.497]
[1760991562539,1.94,189.21,189.16,2.74]
[1760991563623,1.94,189.18,189.12,2.74]
[1760991564535,1.94,189.17,189.09,2.74]
[1760991565733,6.697,189.17,189.12,4.7581]
[1760991565937,1.94,189.16,189.12,7.4981]
[1760991568441,1.94,189.16,189.13,2.91]
[1760991568633,1.94,189.16,189.13,7.6678]
[1760991568839,1.94,189.17,189.13,7.6678]
[1760991573142,1.94,189.17,189.14,2.91]
[1760991574040,1.94,189.19,189.07,9.5188]
[1760991574349,11.82,189.2,189.14,2.91]
[1760991575037,13.76,189.2,189.16,2.91]
[1760991575645,1.94,189.19,189.16,2.91]
[1760991575947,1.94,189.19,189.15,7.6673]
[1760991576441,1.94,189.19,189.16,2.91]
[1760991576949,1.94,189.19,189.15,7.6673]
[1760991578543,1.94,189.19,189.15,4.7573]
[1760991581445,44.16,189.18,189.15,4.7573]
[1760991581744,46.1,189.18,189.15,4.7573]
[1760991581936,1.94,189.18,189.15,4.7573]
[1760991582136,46.1,189.18,189.15,4.7573]
[1760991583043,1.94,189.17,189.15,4.7573]
[1760991583847,46.1,189.17,189.15,4.7573]
[1760991584637,1.94,189.16,189.13,4.7578]
[1760991584946,1.94,189.16,189.13,7.6678]
[1760991587133,46.1,189.17,189.14,4.7576]
[1760991587339,46.1,189.17,189.14,7.6676]
[1760991587736,1.94,189.17,189.14,7.6676]
[1760991587944,26.34,189.16,189.15,2.91]
[1760991588147,44.16,189.16,189.15,2.91]
[1760991588843,44.16,189.17,189.15,2.91]
[1760991589936,44.16,189.17,189.15,4.7572]
[1760991590137,4.92890929,189.25,189.16,2.91]
[1760991590352,1.94,189.25,189.16,2.91]
[1760991590650,1.94,189.25,189.21,2.91]
[1760991590843,8.10334112,189.29,189.21,2.91]
[1760991590844,6.86890929,189.29,189.21,2.91]
[1760991591046,4.92890929,189.33,189.25,2.91]
[1760991591248,46.1,189.32,189.25,2.91]
[1760991592151,44.16,189.31,189.26,4.7542]
[1760991592448,46.1,189.31,189.26,2.91]
[1760991592640,1.94,189.3,189.27,4.7539]
[1760991592839,1.94,189.3,189.27,7.6639]
[1760991593042,46.1,189.31,189.27,2.91]
[1760991593447,1.94,189.3,189.25,7.6646]
[1760991593846,1.94,189.29,189.25,7.6646]
[1760991594748,46.1,189.29,189.25,7.6646]
[1760991596952,1.94,189.32,189.26,2.91]
[1760991597152,44.16,189.29,189.26,2.91]
[1760991597350,46.1,189.29,189.25,7.6446]
[1760991600250,1.94,189.28,189.22,2.89]
[1760991600959,1.94,189.28,189.24,2.89]
[1760991602057,1.94,189.28,189.25,2.89]
[1760991602659,46.08,189.28,189.25,2.89]
[1760991603255,1.94,189.28,189.25,2.89]
[1760991603455,33.52,189.28,189.25,2.89]
[1760991604162,1.94,189.28,189.25,2.89]
[1760991605551,33.52,189.28,189.25,2.89]
[1760991605755,1.94,189.27,189.2,2.89]
[1760991606261,1.94,189.24,189.2,2.89]
[1760991606462,3.17443183,189.25,189.21,2.89]
[1760991606662,1.94,189.25,189.21,2.89]
[1760991607060,33.52,189.28,189.13,14.38813268]
[1760991607259,33.52,189.28,189.22,2.89]
[1760991607575,3.17443183,189.29,189.14,2.89]
[1760991607576,1.94,189.22,189.14,2.89]
[1760991607752,1.94,189.18,189.14,2.89]
[1760991607952,18.53443183,189.19,189.14,2.89]
[1760991608153,3.17443183,189.19,189.14,2.89]
[1760991608756,31.04,189.21,189.14,2.89]
[1760991609065,31.04,189.21,189.15,7.647]
[1760991610161,31.04,189.21,189.15,4.757]
[1760991610365,29.1,189.21,189.16,2.89]
[1760991610554,3.17443183,189.22,189.18,2.89]
[1760991611566,5.11443183,189.22,189.18,2.89]
[1760991612273,1.94,189.21,189.18,2.89]
[1760991615371,1.94,189.21,189.17,2.81]
[1760991616874,2.03234206,189.18,189.17,2.81]
[1760991617266,2.03234206,189.18,189.16,4.7568]
[1760991617463,2.03234206,189.18,189.16,7.5668]
[1760991617763,3.97234206,189.18,189.16,4.7568]
[1760991617970,1.94,189.17,189.12,2.81]
[1760991618169,2.03234206,189.14,189.12,2.81]
[1760991618967,2.03234206,189.14,189.07,2.81]
[1760991619274,2.03234206,189.11,189.07,2.81]
[1760991619868,2.03234206,189.11,189.1,2.81]
[1760991620271,2.03234206,189.13,189.12,2.81]
[1760991620571,2.03234206,189.14,189.12,2.81]
[1760991621475,1.94,189.19,189.12,7.5677]
[1760991621663,2.03234206,189.14,189.12,4.7577]
[1760991621867,2.03234206,189.14,189.12,7.5677]
[1760991622067,2.03234206,189.14,189.12,2.81]
[1760991622275,1.94,189.13,189.08,2.81]
[1760991622569,2.03234206,189.11,189.08,2.81]
[1760991624072,2.03234206,189.11,189.09,4.7585]
[1760991624272,2.03234206,189.11,189.1,2.81]
[1760991624473,2.03234206,189.13,189.1,2.81]
[1760991624675,2.03234206,189.15,189.12,2.81]
[1760991624871,2.03234206,189.17,189.12,2.81]
[1760991625564,2.03234206,189.19,189.16,2.81]
[1760991626075,1.94,189.22,189.16,2.81]
[1760991626278,2.03234206,189.19,189.18,7.5662]
[1760991626677,2.03234206,189.19,189.15,7.567]
[1760991626876,2.03234206,189.19,189.16,2.81]
[1760991627477,2.03234206,189.21,189.12,2.65]
[1760991628781,2.03234206,189.23,189.2,2.65]
[1760991629282,1.94,189.25,189.2,2.65]
[1760991629474,1.94,189.25,189.22,4.7553]
[1760991630278,2.03234206,189.26,189.24,2.65]
[1760991631571,4.7529,189.32,189.25,2.65]
[1760991631772,9.8614496,189.39,189.26,2.65]
[1760991631773,3.96234206,189.35,189.26,2.65]
[1760991632178,2.03234206,189.33,189.29,2.65]
[1760991632382,3.96234206,189.33,189.29,2.65]
[1760991632787,3.96234206,189.33,189.3,2.65]
[1760991635087,3.96234206,189.33,189.29,4.7534]
[1760991635285,3.96234206,189.33,189.29,7.4034]
[1760991635475,3.96234206,189.33,189.29,4.7534]
[1760991635676,3.96234206,189.33,189.29,7.4034]
[1760991636689,3.96234206,189.33,189.29,4.7534]
[1760991636888,2.03234206,189.33,189.3,2.65]
[1760991639284,3.96234206,189.33,189.3,2.65]
[1760991639481,3.96234206,189.33,189.29,4.7534]
[1760991639787,3.96234206,189.33,189.29,7.4034]
[1760991640093,3.96234206,189.31,189.27,7.4041]
[1760991640486,2.03234206,189.31,189.28,2.65]
[1760991641487,3.96234206,189.31,189.28,2.65]
[1760991641688,3.96234206,189.29,189.25,7.4046]
[1760991641887,3.96234206,189.29,189.26,2.65]
[1760991642589,2.03234206,189.29,189.26,2.65]
[1760991644791,2.03234206,189.29,189.27,2.65]
[1760991645289,2.03234206,189.31,189.28,2.65]
[1760991645985,1.93,189.3,189.27,4.754]
[1760991646288,1.93,189.3,189.26,2.65]
[1760991646691,1.93,189.3,189.27,2.65]
[1760991646892,2.03234206,189.31,189.27,2.65]
[1760991647090,3.96234206,189.31,189.27,2.65]
[1760991647291,3.96234206,189.31,189.28,2.65]
[1760991647492,3.96234206,189.31,189.27,7.404]
[1760991649093,2.03234206,189.31,189.28,2.65]
[1760991649489,3.96234206,189.31,189.28,2.65]
[1760991649798,1.93,189.3,189.27,7.404]
[1760991651796,2.03234206,189.31,189.28,2.65]
[1760991652385,2.03234206,189.29,189.24,4.7547]
[1760991652595,1.93,189.26,189.2,2.65]
[1760991652888,2.03234206,189.23,189.16,2.65]
[1760991654092,2.03234206,189.23,189.19,4.7559]
[1760991654290,3.96234206,189.23,189.19,7.4059]
[1760991654896,1.93,189.22,189.19,7.4059]
[1760991655095,1.93,189.2,189.15,2.65]
[1760991655396,3.96234206,189.19,189.15,2.65]
[1760991656494,2.03234206,189.19,189.15,7.4071]
[1760991656793,1.93,189.16,189.12,2.65]
[1760991656999,1.93,189.16,189.08,2.03234206]
[1760991657000,2.03234206,189.15,189.08,2.65]
[1760991657595,1.93,189.16,189.08,2.65]
[1760991657996,1.93,189.16,189.11,7.478]
[1760991658699,1.93,189.16,189.12,2.72]
[1760991660688,1.93,189.16,189.11,4.758]
[1760991660689,1.95,189.15,189.11,4.758]
[1760991660890,1.95,189.15,189.11,7.478]
[1760991665502,1.95,189.15,189.12,2.72]
[1760991667098,4.7557,189.21,189.12,2.72]
[1760991667295,1.95,189.18,189.12,7.4777]
[1760991667601,3.98234206,189.18,189.12,7.4777]
[1760991667791,1.95,189.17,189.12,7.4777]
[1760991671898,1.95,189.17,189.12,4.7577]
[1760991672096,1.95,189.17,189.13,2.72]
[1760991672502,4.90247682,189.28,189.13,2.72]
[1760991672503,1.95,189.2,189.13,2.03234206]
[1760991672704,1.95,189.2,189.14,2.72]
[1760991673096,1.95,189.2,189.13,2.03234206]
[1760991673403,6.7053,189.23,189.16,2.72]
[1760991673603,1.95,189.22,189.16,2.72]
[1760991674005,1.95,189.22,189.17,4.7565]
[1760991674708,1.95,189.3,189.19,2.03234206]
[1760991675006,1.95,189.3,189.23,4.93234206]
[1760991675898,1.95,189.3,189.25,2.03234206]
[1760991676099,1.95,189.3,189.25,4.93234206]
[1760991676302,1.95,189.3,189.25,9.68684206]
[1760991676901,1.95,189.3,189.25,2.9]
[1760991677601,3.97234206,189.34,189.26,2.9]
[1760991677799,1.94,189.34,189.28,2.9]
[1760991677995,3.97234206,189.34,189.28,2.9]
[1760991678204,1.94,189.33,189.27,4.7541]
[1760991678406,4.752,189.36,189.27,7.6541]
[1760991678407,1.94,189.31,189.27,7.6541]
[1760991678608,1.94,189.31,189.28,2.9]
[1760991678807,1.94,189.35,189.28,7.6537]
[1760991679703,1.94,189.34,189.26,4.7543]
[1760991679904,3.17107153,189.33,189.25,2.9]
[1760991680211,1.94,189.32,189.25,2.9]
[1760991680412,3.17107153,189.3,189.22,2.9]
[1760991680610,1.94,189.29,189.22,2.9]
[1760991681010,1.94,189.29,189.22,7.6554]
[1760991681912,1.94,189.29,189.23,2.9]
[1760991683205,1.94,189.26,189.19,2.9]
[1760991683619,1.94,189.26,189.21,2.9]
[1760991687111,3.17107153,189.27,189.21,2.9]
[1760991687315,4.90247682,189.35,189.12,3.17107153]
[1760991687316,5.11107153,189.3,189.22,2.9]
[1760991687818,5.11107153,189.33,189.22,2.9]
[1760991688813,9.86367153,189.33,189.26,2.92]
[1760991689114,1.94,189.33,189.26,2.92]
[1760991689302,1.94,189.33,189.22,2.92]
[1760991689910,1.94,189.33,189.27,4.754]
[1760991690118,1.94,189.33,189.26,2.92]
[1760991691111,1.94,189.33,189.26,7.6741]
[1760991691811,1.94,189.33,189.27,7.674]
[1760991692914,1.94,189.33,189.28,2.92]
[1760991693504,1.94,189.33,189.29,2.92]
[1760991693707,3.17107153,189.35,189.29,2.92]
[1760991693909,44.14,189.39,189.29,2.92]
[1760991693910,3.17107153,189.38,189.29,2.92]
[1760991694313,3.17107153,189.38,189.31,4.7529]
[1760991694614,1.94,189.39,189.32,2.92]
[1760991695112,7.92177153,189.41,189.34,4.7522]
[1760991695313,7.92177153,189.41,189.35,2.92]
[1760991695522,3.17107153,189.41,189.35,2.92]
[1760991696024,5.11107153,189.41,189.35,2.92]
[1760991699610,1.94,189.4,189.35,2.92]
[1760991700822,3.17107153,189.41,189.35,2.92]
[1760991705725,47.29107153,189.41,189.35,2.92]
[1760991706120,1.94,189.4,189.34,4.7522]
[1760991706319,46.06,189.4,189.34,4.7522]
[1760991707027,1.94,189.4,189.34,7.6722]
[1760991707326,46.06,189.4,189.34,7.6722]
[1760991710230,44.12,189.4,189.35,2.92]
[1760991710634,46.06,189.4,189.35,2.92]
[1760991711428,1.94,189.39,189.35,2.92]
[1760991713626,46.06,189.39,189.35,2.92]
[1760991716734,1.94,189.37,189.31,2.92]
[1760991716935,7.92267153,189.38,189.31,2.92]
[1760991716936,3.17107153,189.38,189.31,2.92]
[1760991717137,44.12,189.37,189.31,2.92]
[1760991717524,44.12,189.37,189.34,2.72]
[1760991717930,47.29107153,189.38,189.34,2.72]
[1760991718737,49.23107153,189.38,189.34,7.4723]
[1760991718934,1.94,189.37,189.31,2.72]
[1760991719329,3.17107153,189.35,189.31,2.72]
[1760991719933,3.17107153,189.35,189.32,4.7527]
[1760991720142,3.17107153,189.35,189.32,7.4727]
[1760991720334,1.94,189.34,189.32,4.7527]
[1760991721229,3.17107153,189.35,189.32,4.7527]
[1760991721435,5.11107153,189.35,189.32,7.4727]
[1760991722034,1.94,189.34,189.3,7.4732]
[1760991722234,1.94,189.34,189.3,2.72]
[1760991722541,3.17107153,189.35,189.3,2.72]
[1760991722738,5.11107153,189.35,189.3,2.72]
[1760991723141,1.94,189.34,189.3,2.72]
[1760991723835,1.94,189.34,189.31,4.753]
[1760991724140,1.94,189.34,189.3,2.72]
[1760991724646,1.94,189.34,189.3,7.4733]
[1760991725129,5.11107153,189.35,189.31,2.72]
[1760991725334,1.94,189.34,189.3,4.7533]
[1760991725529,1.94,189.34,189.3,7.4733]
[1760991726142,1.94,189.34,189.31,7.473]
[1760991727242,1.94,189.34,189.3,2.72]
[1760991727438,5.11107153,189.32,189.24,2.72]
[1760991728038,1.94,189.31,189.27,7.474]
[1760991728235,1.94,189.31,189.24,2.72]
[1760991729036,5.11107153,189.29,189.24,2.72]
[1760991729545,5.11107153,189.29,189.25,2.72]
[1760991730046,5.11107153,189.29,189.25,7.4745]
[1760991731337,5.11107153,189.29,189.25,4.7545]
[1760991731538,1.94,189.28,189.23,7.475]
[1760991731742,1.94,189.28,189.24,2.72]
[1760991733441,3.17107153,189.29,189.25,2.72]
[1760991733642,5.11107153,189.29,189.25,2.72]
[1760991734744,3.17107153,189.29,189.25,4.7545]
[1760991734944,3.17107153,189.29,189.26,2.72]
[1760991736153,5.11107153,189.29,189.26,2.72]
[1760991736858,1.94,189.28,189.25,7.6145]
[1760991737656,1.94,189.28,189.26,2.86]
[1760991737856,3.17107153,189.29,189.26,2.86]
[1760991738063,7.92357153,189.34,189.21,2.86]
[1760991738259,1.94,189.35,189.23,2.86]
[1760991738460,1.94,189.35,189.24,2.86]
[1760991738964,1.94,189.35,189.25,2.86]
[1760991740457,1.94,189.35,189.31,4.753]
[1760991740660,2.02889637,189.34,189.31,7.613]
[1760991740859,3.96889637,189.34,189.31,7.613]
[1760991743258,2.02889637,189.34,189.32,2.86]
[1760991744969,3.96889637,189.34,189.31,4.753]
[1760991745773,3.96889637,189.34,189.31,7.613]
[1760991746472,2.02889637,189.34,189.31,4.753]
[1760991746674,2.02889637,189.34,189.32,2.86]
[1760991749672,3.94889637,189.34,189.32,2.86]
[1760991749875,3.94889637,189.34,189.31,4.753]
[1760991750075,3.94889637,189.34,189.31,7.443]
[1760991752277,3.94889637,189.34,189.31,4.753]
[1760991752481,44.1,189.38,189.25,6.8921467]
[1760991752482,2.02889637,189.42,189.33,2.02889637]
[1760991752771,2.02889637,189.42,189.34,2.69]
[1760991753170,2.02889637,189.42,189.38,4.7512]
[1760991753368,2.02889637,189.42,189.39,2.69]
[1760991753772,2.02889637,189.4,189.37,2.69]
[1760991753978,3.94889637,189.4,189.37,2.69]
[1760991761080,1.92,189.37,189.34,7.4423]
[1760991761282,2.02889637,189.38,189.35,2.69]
[1760991761690,3.94889637,189.38,189.35,2.69]
[1760991762582,1.92,189.37,189.35,2.69]
[1760991764488,1.92,189.37,189.34,4.7523]
[1760991764688,1.92,189.37,189.34,7.4423]
[1760991765088,3.94889637,189.36,189.32,4.7528]
[1760991765390,3.94889637,189.36,189.33,2.69]
[1760991766089,1.92,189.35,189.32,4.7528]
[1760991766293,1.92,189.35,189.32,7.4428]
[1760991766994,1.92,189.35,189.32,2.69]
[1760991768185,2.02889637,189.34,189.32,2.69]
[1760991768493,3.94889637,189.34,189.32,2.69]
[1760991768994,3.94889637,189.34,189.31,4.753]
[1760991769387,3.94889637,189.34,189.31,7.443]
[1760991770490,1.92,189.41,189.32,2.69]
[1760991770691,2.02889637,189.4,189.32,2.69]
[1760991770892,1.92,189.41,189.36,4.7517]
[1760991771199,1.92,189.41,189.37,2.69]
[1760991773098,1.92,189.41,189.37,7.4415]
[1760991774895,1.92,189.41,189.38,4.7512]
[1760991775402,1.92,189.41,189.38,7.4412]
[1760991778389,1.92,189.41,189.39,2.66]
[1760991778595,1.92,189.43,189.39,2.66]
[1760991780400,1.92,189.42,189.36,7.4117]
[1760991781602,46.0,189.42,189.36,7.4117]
[1760991782106,50.7505,189.42,189.36,7.4117]
[1760991782908,1.92,189.41,189.36,7.4117]
[1760991783107,1.92,189.41,189.37,2.66]
[1760991785505,6.6705,189.42,189.38,2.66]
[1760991785813,44.08,189.41,189.38,2.66]
[1760991786107,4.7499,189.44,189.39,2.66]
[1760991786312,6.6699,189.44,189.39,2.66]
[1760991786513,0.91905454,189.46,189.4,2.66]
[1760991786710,0.91905454,189.46,189.42,2.66]
[1760991786909,50.90129259,189.48,189.42,2.66]
[1760991788000,1.92,189.46,189.41,4.7504]
[1760991788308,1.92,189.46,189.42,2.66]
[1760991788514,46.0,189.45,189.42,2.66]
[1760991789613,45.98,189.45,189.42,2.66]
[1760991789813,1.92,189.45,189.42,2.66]
[1760991790309,48.92774464,189.47,189.42,2.66]
[1760991790513,46.89884827,189.47,189.42,2.66]
[1760991791316,4.7484,189.5,189.43,2.66]
[1760991791533,44.06,189.5,189.44,2.66]
[1760991792236,3.94889637,189.51,189.44,2.66]
[1760991792536,44.06,189.5,189.47,2.66]
[1760991793122,0.9186906,189.52,189.49,2.66]
[1760991793425,45.98,189.54,189.49,2.66]
[1760991793626,9.64819259,189.56,189.5,2.66]
[1760991793831,45.98,189.55,189.5,2.66]
[1760991794029,1.92,189.55,189.5,2.66]
[1760991794328,45.98,189.55,189.51,2.66]
[1760991794529,1.92,189.54,189.51,2.66]
[1760991794732,1.92,189.54,189.48,2.66]
[1760991795427,2.02889637,189.55,189.48,2.66]
[1760991795626,46.08889637,189.55,189.48,2.66]
[1760991795822,2.02889637,189.55,189.48,2.66]
[1760991796026,39.50889637,189.55,189.48,2.66]
[1760991796230,46.08889637,189.55,189.48,2.66]
[1760991796433,2.02889637,189.55,189.48,2.66]
[1760991796634,39.50889637,189.55,189.48,2.66]
[1760991797133,2.02889637,189.55,189.48,2.66]
[1760991797527,6.77619637,189.55,189.48,2.66]
[1760991800537,6.77619637,189.55,189.49,2.87]
[1760991800738,4.7473,189.55,189.49,2.87]
[1760991801440,4.7476,189.54,189.49,2.87]
[1760991803631,4.7479,189.52,189.4,3.16370838]
[1760991803831,4.7479,189.52,189.41,2.87]
[1760991804935,4.7479,189.52,189.44,4.7497]
[1760991805238,4.7479,189.52,189.45,2.87]
[1760991805642,4.7479,189.52,189.35,27.9]
[1760991805643,3.16370838,189.5,189.42,7.6203]
[1760991805827,3.16370838,189.5,189.43,2.87]
[1760991806843,39.00370838,189.5,189.43,2.87]
[1760991807038,4.749,189.48,189.43,2.87]
[1760991807539,3.16370838,189.51,189.43,2.87]
[1760991807734,47.20370838,189.51,189.43,7.6199]
[1760991807934,47.20370838,189.51,189.44,2.84]
[1760991808239,51.95190838,189.51,189.44,2.84]
[1760991808634,47.20370838,189.51,189.44,7.5897]
[1760991808834,4.7485,189.5,189.44,7.5897]
[1760991809741,4.7485,189.5,189.45,2.84]
[1760991811534,4.7487,189.49,189.42,7.5902]
[1760991812337,4.7487,189.49,189.43,2.84]
[1760991815740,3.16370838,189.53,189.44,2.84]
[1760991815939,3.16370838,189.56,189.44,2.84]
[1760991816337,4.7472,189.55,189.48,7.5887]
[1760991816545,3.16370838,189.56,189.48,7.5887]
[1760991817347,47.20370838,189.56,189.48,7.5887]
[1760991818047,4.7475,189.54,189.48,7.5887]
[1760991820650,45.24370838,189.56,189.48,7.5887]
[1760991820854,3.16370838,189.56,189.48,7.5887]
[1760991821950,4.7472,189.55,189.48,7.5887]
[1760991822550,4.7475,189.54,189.48,7.5887]
[1760991824153,4.7475,189.54,189.49,2.84]
[1760991825057,0.91844814,189.57,189.5,2.84]
[1760991825244,3.16370838,189.56,189.5,2.84]
[1760991825648,3.16370838,189.56,189.51,2.84]
[1760991825857,5.66514814,189.57,189.51,2.84]
[1760991826740,4.747,189.56,189.51,2.84]
[1760991826946,0.91844814,189.57,189.51,2.84]
[1760991827343,3.16370838,189.56,189.43,2.84]
[1760991827753,47.18370838,189.56,189.43,2.84]
[1760991827956,3.16370838,189.56,189.43,2.84]
[1760991828543,44.93844814,189.57,189.43,2.84]